[Event "*** Titled Tuesday Blitz"]
[Site "Chess.com"]
[Date "2020.04.28"]
[Round "5"]
[White "731291"]
[Black "JSMastropiero"]
[Result "1-0"]
[WhiteElo "2683"]
[BlackElo "2435"]
[TimeControl "180+1"]
[EndTime "10:57:32 PDT"]
[Termination "731291 won by resignation"]

1. d4 {[%clk 0:03:00.9]} 1... Nf6 {[%clk 0:02:58.3]} 2. Nf3 {[%clk 0:03:00.7]}
2... d5 {[%clk 0:02:56.4]} 3. c4 {[%clk 0:02:59.8]} 3... e6 {[%clk 0:02:56]} 4.
g3 {[%clk 0:03:00]} 4... Bb4+ {[%clk 0:02:55.1]} 5. Bd2 {[%clk 0:03:00.1]} 5...
Bd6 {[%clk 0:02:54.8]} 6. Bg2 {[%clk 0:03:00.4]} 6... c6 {[%clk 0:02:54.1]} 7.
O-O {[%clk 0:03:00.8]} 7... O-O {[%clk 0:02:53.4]} 8. Bg5 {[%clk 0:03:01]} 8...
Nbd7 {[%clk 0:02:51.1]} 9. Nbd2 {[%clk 0:03:00.9]} 9... h6 {[%clk 0:02:49.3]}
10. Bxf6 {[%clk 0:03:00.9]} 10... Nxf6 {[%clk 0:02:48.3]} 11. Qc2 {[%clk
0:03:01.8]} 11... b6 {[%clk 0:02:33.3]} 12. e4 {[%clk 0:03:01.3]} 12... Be7
{[%clk 0:02:22.9]} 13. Ne5 {[%clk 0:02:55.8]} 13... Bb7 {[%clk 0:02:21.4]} 14.
Rad1 {[%clk 0:02:45.1]} 14... Rc8 {[%clk 0:02:18.5]} 15. Rfe1 {[%clk 0:02:43.9]}
15... Nd7 {[%clk 0:02:13.7]} 16. Nxd7 {[%clk 0:02:34.7]} 16... Qxd7 {[%clk
0:02:13.5]} 17. Nf3 {[%clk 0:02:26.5]} 17... Bf6 {[%clk 0:02:05.3]} 18. Qa4
{[%clk 0:02:14.5]} 18... dxe4 {[%clk 0:01:54.3]} 19. Ne5 {[%clk 0:02:10.4]}
19... Bxe5 {[%clk 0:01:52]} 20. dxe5 {[%clk 0:02:11.3]} 20... Qc7 {[%clk
0:01:51.6]} 21. Rd6 {[%clk 0:01:50.1]} 21... Rfd8 {[%clk 0:01:25.8]} 22. Red1
{[%clk 0:01:46.8]} 22... Rxd6 {[%clk 0:01:23.3]} 23. exd6 {[%clk 0:01:45.9]}
23... Qb8 {[%clk 0:01:20.2]} 24. Bxe4 {[%clk 0:01:42.5]} 24... c5 {[%clk
0:01:20.5]} 25. Qc2 {[%clk 0:01:09.4]} 25... Rd8 {[%clk 0:01:12.7]} 26. Bxb7
{[%clk 0:01:04.9]} 26... Qxb7 {[%clk 0:01:12.7]} 27. Qd3 {[%clk 0:01:04.7]}
27... Rd7 {[%clk 0:01:09.9]} 28. h4 {[%clk 0:01:02]} 28... h5 {[%clk 0:01:08.9]}
29. Qe2 {[%clk 0:01:00.2]} 29... g6 {[%clk 0:01:08.6]} 30. Qe5 {[%clk
0:00:59.8]} 30... Qb8 {[%clk 0:01:05.8]} 31. a3 {[%clk 0:00:57.7]} 31... a5
{[%clk 0:01:01.4]} 32. Rd3 {[%clk 0:00:56.5]} 32... Qf8 {[%clk 0:01:00.8]} 33.
Kh2 {[%clk 0:00:55]} 33... Qg7 {[%clk 0:00:59.6]} 34. Qe2 {[%clk 0:00:51.5]}
34... a4 {[%clk 0:00:56.6]} 35. Rd2 {[%clk 0:00:50.9]} 35... Qf6 {[%clk
0:00:55.1]} 36. Qe4 {[%clk 0:00:48.5]} 36... e5 {[%clk 0:00:52.5]} 37. Qc6
{[%clk 0:00:46.6]} 37... Qd8 {[%clk 0:00:47.6]} 38. Rd5 {[%clk 0:00:42.2]} 38...
Kg7 {[%clk 0:00:46]} 39. Kg2 {[%clk 0:00:40.4]} 39... Kf6 {[%clk 0:00:39.5]} 40.
Rd3 {[%clk 0:00:38.8]} 40... Kg7 {[%clk 0:00:37.7]} 41. Qd5 {[%clk 0:00:37.9]}
41... Qe8 {[%clk 0:00:32.6]} 42. Qc6 {[%clk 0:00:29]} 42... Qd8 {[%clk
0:00:30.7]} 43. Rd5 {[%clk 0:00:27.3]} 43... Kf6 {[%clk 0:00:29.8]} 44. Rd2
{[%clk 0:00:24.9]} 44... Kg7 {[%clk 0:00:29.3]} 45. Qd5 {[%clk 0:00:23.1]} 45...
Qe8 {[%clk 0:00:27.1]} 46. Kg1 {[%clk 0:00:22.7]} 46... Kf6 {[%clk 0:00:23.6]}
47. Qf3+ {[%clk 0:00:18]} 47... Kg7 {[%clk 0:00:23.3]} 48. Qe4 {[%clk
0:00:18.5]} 48... Qe6 {[%clk 0:00:22.8]} 49. Qc6 {[%clk 0:00:18.5]} 49... e4
{[%clk 0:00:19.5]} 50. Qxb6 {[%clk 0:00:11.5]} 50... e3 {[%clk 0:00:16]} 51. Re2
{[%clk 0:00:11]} 51... exf2+ {[%clk 0:00:15.9]} 52. Kxf2 {[%clk 0:00:11.5]}
52... Qf6+ {[%clk 0:00:16.1]} 53. Kg2 {[%clk 0:00:11.2]} 53... Rxd6 {[%clk
0:00:16.7]} 54. Qxc5 {[%clk 0:00:11.4]} 54... Rd3 {[%clk 0:00:16.4]} 55. Qe5
{[%clk 0:00:10.1]} 55... Qxe5 {[%clk 0:00:15.2]} 56. Rxe5 {[%clk 0:00:11]} 56...
Rd2+ {[%clk 0:00:15.8]} 57. Kf3 {[%clk 0:00:10.9]} 57... Rxb2 {[%clk 0:00:16.4]}
58. Re3 {[%clk 0:00:11.1]} 58... Rc2 {[%clk 0:00:16.2]} 59. Re4 {[%clk
0:00:10.4]} 59... Rc3+ {[%clk 0:00:16.5]} 60. Kf4 {[%clk 0:00:10.8]} 60... Rxa3
{[%clk 0:00:16.4]} 61. Ke5 {[%clk 0:00:08.5]} 61... Rxg3 {[%clk 0:00:15.6]} 62.
c5 {[%clk 0:00:08.9]} 62... Rc3 {[%clk 0:00:15.5]} 63. Kd6 {[%clk 0:00:08.8]}
63... a3 {[%clk 0:00:15.3]} 64. c6 {[%clk 0:00:08.4]} 64... Rd3+ {[%clk
0:00:13.9]} 65. Kc5 {[%clk 0:00:08]} 65... Rc3+ {[%clk 0:00:14.1]} 66. Kb6
{[%clk 0:00:08.5]} 66... Rb3+ {[%clk 0:00:14.1]} 67. Kc5 {[%clk 0:00:08.7]}
67... Rc3+ {[%clk 0:00:14.3]} 68. Kd6 {[%clk 0:00:09.2]} 68... Kf6 {[%clk
0:00:14.6]} 69. Rf4+ {[%clk 0:00:08.9]} 69... Kg7 {[%clk 0:00:15]} 70. c7 {[%clk
0:00:08.5]} 70... a2 {[%clk 0:00:15.1]} 71. Ra4 {[%clk 0:00:08.2]} 71... Rc2
{[%clk 0:00:14.8]} 72. Rxa2 {[%clk 0:00:08.6]} 72... Rc4 {[%clk 0:00:13.7]} 73.
Ra6 {[%clk 0:00:08.9]} 73... Rd4+ {[%clk 0:00:13]} 74. Ke7 {[%clk 0:00:09.3]}
74... Rc4 {[%clk 0:00:12.3]} 75. Kd7 {[%clk 0:00:09.5]} 75... Rd4+ {[%clk
0:00:12.5]} 76. Rd6 {[%clk 0:00:09.3]} 76... Rc4 {[%clk 0:00:12]} 77. Rc6 {[%clk
0:00:09.7]} 77... Rd4+ {[%clk 0:00:12.5]} 78. Ke7 {[%clk 0:00:10.1]} 78... Re4+
{[%clk 0:00:12.7]} 79. Kd6 {[%clk 0:00:10.6]} 79... Rd4+ {[%clk 0:00:13]} 80.
Ke5 {[%clk 0:00:10.7]} 1-0

[Event "*** Titled Tuesday Blitz"]
[Site "Chess.com"]
[Date "2020.04.28"]
[Round "5"]
[White "otrov-11"]
[Black "FeketeBarika"]
[Result "0-1"]
[WhiteElo "2366"]
[BlackElo "2231"]
[TimeControl "180+1"]
[EndTime "10:57:32 PDT"]
[Termination "FeketeBarika won by checkmate"]

1. Nf3 {[%clk 0:03:00.9]} 1... d5 {[%clk 0:02:57.7]} 2. c4 {[%clk 0:03:00.9]}
2... c6 {[%clk 0:02:56.2]} 3. g3 {[%clk 0:02:59.4]} 3... Nf6 {[%clk 0:02:55.4]}
4. Bg2 {[%clk 0:02:59.2]} 4... Bg4 {[%clk 0:02:54.1]} 5. b3 {[%clk 0:02:55.3]}
5... Nbd7 {[%clk 0:02:53.6]} 6. Bb2 {[%clk 0:02:54.4]} 6... e6 {[%clk
0:02:09.1]} 7. O-O {[%clk 0:02:53.2]} 7... Be7 {[%clk 0:02:05.3]} 8. d3 {[%clk
0:02:52.6]} 8... O-O {[%clk 0:02:04.3]} 9. Nbd2 {[%clk 0:02:52.7]} 9... Re8
{[%clk 0:02:04]} 10. Qc2 {[%clk 0:02:49.4]} 10... a5 {[%clk 0:02:02.7]} 11. a3
{[%clk 0:02:48.6]} 11... Rc8 {[%clk 0:01:59.7]} 12. Rfe1 {[%clk 0:02:43.2]}
12... b5 {[%clk 0:01:54.6]} 13. e4 {[%clk 0:02:34]} 13... dxe4 {[%clk
0:01:37.6]} 14. dxe4 {[%clk 0:02:26.7]} 14... Nc5 {[%clk 0:01:25.2]} 15. Re3
{[%clk 0:02:18.8]} 15... Nfd7 {[%clk 0:00:57.4]} 16. Nd4 {[%clk 0:01:53]} 16...
e5 {[%clk 0:00:54.3]} 17. N4f3 {[%clk 0:01:46]} 17... f6 {[%clk 0:00:49.9]} 18.
Nf1 {[%clk 0:01:32.6]} 18... Ne6 {[%clk 0:00:43.8]} 19. Rd3 {[%clk 0:01:24.3]}
19... Qc7 {[%clk 0:00:43.1]} 20. Ne3 {[%clk 0:01:17.7]} 20... Bxf3 {[%clk
0:00:40.7]} 21. Bxf3 {[%clk 0:01:18.6]} 21... Ndc5 {[%clk 0:00:41]} 22. Rd2
{[%clk 0:01:16.8]} 22... a4 {[%clk 0:00:37.8]} 23. bxa4 {[%clk 0:01:07.6]} 23...
bxa4 {[%clk 0:00:36.6]} 24. Rad1 {[%clk 0:01:03.1]} 24... Ng5 {[%clk 0:00:35.2]}
25. Bg2 {[%clk 0:01:02.2]} 25... Qb6 {[%clk 0:00:30.6]} 26. h3 {[%clk
0:00:59.8]} 26... Rcd8 {[%clk 0:00:17.3]} 27. h4 {[%clk 0:00:58.5]} 27... Nge6
{[%clk 0:00:16.2]} 28. Nf5 {[%clk 0:00:52.9]} 28... Bf8 {[%clk 0:00:15.7]} 29.
Rxd8 {[%clk 0:00:51.1]} 29... Rxd8 {[%clk 0:00:15.4]} 30. Rxd8 {[%clk
0:00:50.5]} 30... Qxd8 {[%clk 0:00:16.3]} 31. h5 {[%clk 0:00:42.5]} 31... g6
{[%clk 0:00:16.3]} 32. hxg6 {[%clk 0:00:42.1]} 32... hxg6 {[%clk 0:00:17.2]} 33.
Ne3 {[%clk 0:00:42.8]} 33... Kf7 {[%clk 0:00:17.5]} 34. Bh3 {[%clk 0:00:33.5]}
34... Qd3 {[%clk 0:00:17.4]} 35. Bxe6+ {[%clk 0:00:23.8]} 35... Kxe6 {[%clk
0:00:17.1]} 36. Qc1 {[%clk 0:00:15.6]} 36... Qxe4 {[%clk 0:00:17]} 37. Qd1
{[%clk 0:00:14.1]} 37... Nd3 {[%clk 0:00:17]} 38. Bc3 {[%clk 0:00:09.8]} 38...
Bc5 {[%clk 0:00:16.6]} 39. Qg4+ {[%clk 0:00:03.6]} 39... Qxg4 {[%clk 0:00:15.9]}
40. Nxg4 {[%clk 0:00:04.5]} 40... f5 {[%clk 0:00:15.5]} 41. Ne3 {[%clk
0:00:04.3]} 41... Bxe3 {[%clk 0:00:15]} 42. fxe3 {[%clk 0:00:05.2]} 42... Nc5
{[%clk 0:00:13.5]} 43. Kf1 {[%clk 0:00:03.7]} 43... Ne4 {[%clk 0:00:13.8]} 44.
Be1 {[%clk 0:00:03.4]} 44... Nd6 {[%clk 0:00:14.2]} 45. Ke2 {[%clk 0:00:03.3]}
45... Nxc4 {[%clk 0:00:14.1]} 46. Bb4 {[%clk 0:00:03.5]} 46... Kd5 {[%clk
0:00:12.9]} 47. Kd3 {[%clk 0:00:03.7]} 47... c5 {[%clk 0:00:13]} 48. Bc3 {[%clk
0:00:02.5]} 48... Nxa3 {[%clk 0:00:13.2]} 49. Ba1 {[%clk 0:00:03.2]} 49... Nb5
{[%clk 0:00:13.5]} 50. Ke2 {[%clk 0:00:02.2]} 50... c4 {[%clk 0:00:13.8]} 51.
Kf2 {[%clk 0:00:03.1]} 51... a3 {[%clk 0:00:14.1]} 52. Ke2 {[%clk 0:00:03.4]}
52... Ke4 {[%clk 0:00:13.5]} 53. Kd2 {[%clk 0:00:04.3]} 53... c3+ {[%clk
0:00:13.3]} 54. Kc2 {[%clk 0:00:04.1]} 54... Kxe3 {[%clk 0:00:13.1]} 55. g4
{[%clk 0:00:04.2]} 55... fxg4 {[%clk 0:00:12.8]} 56. Kb3 {[%clk 0:00:04.6]}
56... Kd2 {[%clk 0:00:12.7]} 57. Ka2 {[%clk 0:00:05.5]} 57... c2 {[%clk
0:00:12.6]} 58. Bb2 {[%clk 0:00:02.7]} 58... axb2 {[%clk 0:00:12.1]} 59. Kb3
{[%clk 0:00:02.1]} 59... b1=Q+ {[%clk 0:00:12.2]} 60. Kc4 {[%clk 0:00:03]} 60...
Na3+ {[%clk 0:00:12.5]} 61. Kd5 {[%clk 0:00:03.8]} 61... Qb5+ {[%clk 0:00:13.4]}
62. Ke6 {[%clk 0:00:04]} 62... Qc4+ {[%clk 0:00:13.3]} 63. Kf6 {[%clk
0:00:04.2]} 63... e4 {[%clk 0:00:13.5]} 64. Kg5 {[%clk 0:00:05.1]} 64... Ke3
{[%clk 0:00:13.8]} 65. Kh4 {[%clk 0:00:05.9]} 65... Qd5 {[%clk 0:00:14.1]} 66.
Kg3 {[%clk 0:00:06.2]} 66... g5 {[%clk 0:00:13.6]} 67. Kh2 {[%clk 0:00:06]}
67... Qf5 {[%clk 0:00:13.6]} 68. Kg3 {[%clk 0:00:06.9]} 68... Qf3+ {[%clk
0:00:13.5]} 69. Kh2 {[%clk 0:00:07.8]} 69... g3+ {[%clk 0:00:13.7]} 70. Kh3
{[%clk 0:00:08.7]} 70... g2+ {[%clk 0:00:13.3]} 71. Kh2 {[%clk 0:00:09.6]} 71...
g1=Q+ {[%clk 0:00:13.1]} 72. Kxg1 {[%clk 0:00:09.7]} 72... Qf2+ {[%clk
0:00:13.3]} 73. Kh1 {[%clk 0:00:09.4]} 73... Qe2 {[%clk 0:00:14.2]} 74. Kg1
{[%clk 0:00:09.2]} 74... Kf3 {[%clk 0:00:14.7]} 75. Kh1 {[%clk 0:00:10.1]} 75...
Kg3 {[%clk 0:00:14.8]} 76. Kg1 {[%clk 0:00:09.5]} 76... Qe1# {[%clk 0:00:15.7]}
0-1

[Event "*** Titled Tuesday Blitz"]
[Site "Chess.com"]
[Date "2020.04.28"]
[Round "5"]
[White "Rumpel-VK"]
[Black "Izoria123"]
[Result "0-1"]
[WhiteElo "2623"]
[BlackElo "2819"]
[TimeControl "180+1"]
[EndTime "10:57:36 PDT"]
[Termination "Izoria123 won on time"]

1. e4 {[%clk 0:03:00.9]} 1... d6 {[%clk 0:03:00.9]} 2. d4 {[%clk 0:03:00.2]}
2... g6 {[%clk 0:03:01.6]} 3. h3 {[%clk 0:02:58.9]} 3... Bg7 {[%clk 0:03:00.4]}
4. Nf3 {[%clk 0:02:59.3]} 4... Nf6 {[%clk 0:02:56.9]} 5. Nc3 {[%clk 0:02:57.8]}
5... O-O {[%clk 0:02:57.4]} 6. Be2 {[%clk 0:02:56.4]} 6... c5 {[%clk 0:02:56.6]}
7. d5 {[%clk 0:02:49.8]} 7... b5 {[%clk 0:02:56]} 8. Bxb5 {[%clk 0:02:41]} 8...
Nxe4 {[%clk 0:02:55.3]} 9. Nxe4 {[%clk 0:02:41.9]} 9... Qa5+ {[%clk 0:02:55.3]}
10. Nfd2 {[%clk 0:02:42.4]} 10... Qxb5 {[%clk 0:02:53.7]} 11. c4 {[%clk
0:02:42.9]} 11... Qa6 {[%clk 0:02:44.9]} 12. O-O {[%clk 0:02:39.2]} 12... Nd7
{[%clk 0:02:45.2]} 13. Re1 {[%clk 0:02:32.4]} 13... Ne5 {[%clk 0:02:43.9]} 14.
Qe2 {[%clk 0:02:17.8]} 14... Bf5 {[%clk 0:02:30.4]} 15. f4 {[%clk 0:02:12.8]}
15... Nd7 {[%clk 0:02:28.5]} 16. Ng3 {[%clk 0:02:07.5]} 16... Bc2 {[%clk
0:02:23.5]} 17. Nf3 {[%clk 0:01:53.9]} 17... Bb3 {[%clk 0:02:22.7]} 18. Nd2
{[%clk 0:01:42.4]} 18... Ba4 {[%clk 0:02:21.5]} 19. Qxe7 {[%clk 0:01:32.4]}
19... Bd4+ {[%clk 0:02:15.4]} 20. Kh2 {[%clk 0:01:29]} 20... Nf6 {[%clk
0:02:16]} 21. Nde4 {[%clk 0:01:17.8]} 21... Nxe4 {[%clk 0:02:07.2]} 22. Nxe4
{[%clk 0:01:09.4]} 22... Rae8 {[%clk 0:01:58.4]} 23. Qh4 {[%clk 0:01:09.2]}
23... Qxc4 {[%clk 0:01:51.7]} 24. Bd2 {[%clk 0:00:57.2]} 24... Rxe4 {[%clk
0:01:25.5]} 25. Rxe4 {[%clk 0:00:54.9]} 25... Qxd5 {[%clk 0:01:25.5]} 26. Rae1
{[%clk 0:00:48.5]} 26... Bc6 {[%clk 0:01:23.4]} 27. Bc3 {[%clk 0:00:44.1]} 27...
Bxc3 {[%clk 0:01:18.5]} 28. bxc3 {[%clk 0:00:45]} 28... Qxa2 {[%clk 0:01:18.4]}
29. R4e2 {[%clk 0:00:41.7]} 29... Qc4 {[%clk 0:01:18.1]} 30. Qf6 {[%clk
0:00:39.5]} 30... Qd5 {[%clk 0:01:13.2]} 31. f5 {[%clk 0:00:32]} 31... Qxf5
{[%clk 0:01:07.2]} 32. Qxd6 {[%clk 0:00:25.2]} 32... Bd7 {[%clk 0:00:53.7]} 33.
Re5 {[%clk 0:00:18.2]} 33... Qf4+ {[%clk 0:00:52.7]} 34. Kh1 {[%clk 0:00:18]}
34... Be6 {[%clk 0:00:38.4]} 35. Qxc5 {[%clk 0:00:17.1]} 35... Rc8 {[%clk
0:00:36.5]} 36. Qe3 {[%clk 0:00:15.7]} 36... Qc4 {[%clk 0:00:31.9]} 37. Qxa7
{[%clk 0:00:12.6]} 37... Qxc3 {[%clk 0:00:31.1]} 38. Qe3 {[%clk 0:00:12.4]}
38... Qxe3 {[%clk 0:00:30.7]} 39. R5xe3 {[%clk 0:00:12.1]} 39... Rc6 {[%clk
0:00:30.4]} 40. Kh2 {[%clk 0:00:11.1]} 40... Kg7 {[%clk 0:00:30.2]} 41. g4
{[%clk 0:00:11.2]} 41... h6 {[%clk 0:00:29.4]} 42. Kg3 {[%clk 0:00:11.3]} 42...
Rb6 {[%clk 0:00:29.4]} 43. Re4 {[%clk 0:00:11.3]} 43... Rb3+ {[%clk 0:00:29.2]}
44. R1e3 {[%clk 0:00:11.1]} 44... Rb6 {[%clk 0:00:29.6]} 45. Rd4 {[%clk
0:00:09.6]} 45... Ra6 {[%clk 0:00:29.5]} 46. h4 {[%clk 0:00:08.7]} 46... Ra5
{[%clk 0:00:28.5]} 47. Rc3 {[%clk 0:00:08.1]} 47... g5 {[%clk 0:00:28]} 48. hxg5
{[%clk 0:00:05.8]} 48... Rxg5 {[%clk 0:00:26.8]} 49. Kh4 {[%clk 0:00:05.9]}
49... Rg6 {[%clk 0:00:25.9]} 50. Rf3 {[%clk 0:00:05.7]} 50... Rf6 {[%clk
0:00:25.2]} 51. Rxf6 {[%clk 0:00:04.3]} 51... Kxf6 {[%clk 0:00:26.1]} 52. Kh5
{[%clk 0:00:04.8]} 52... Kg7 {[%clk 0:00:26.8]} 53. Rf4 {[%clk 0:00:04.8]} 53...
Bd7 {[%clk 0:00:26.7]} 54. Rf2 {[%clk 0:00:05.1]} 54... Be6 {[%clk 0:00:25.6]}
55. Rf1 {[%clk 0:00:05.5]} 55... Bd7 {[%clk 0:00:25.8]} 56. Re1 {[%clk
0:00:05.9]} 56... Be6 {[%clk 0:00:26.3]} 57. Rd1 {[%clk 0:00:06.2]} 57... Bc8
{[%clk 0:00:25.5]} 58. Kh4 {[%clk 0:00:06.1]} 58... Be6 {[%clk 0:00:26]} 59. Rc1
{[%clk 0:00:06.2]} 59... Bd7 {[%clk 0:00:25.1]} 60. Kg3 {[%clk 0:00:06.2]} 60...
Be6 {[%clk 0:00:25.6]} 61. Kf4 {[%clk 0:00:06.6]} 61... Bd7 {[%clk 0:00:24.9]}
62. Rd1 {[%clk 0:00:07.1]} 62... Be6 {[%clk 0:00:25.2]} 63. Rd2 {[%clk
0:00:07.6]} 63... Kg6 {[%clk 0:00:25.4]} 64. Rd6 {[%clk 0:00:06.4]} 64... Kg7
{[%clk 0:00:25.8]} 65. g5 {[%clk 0:00:06]} 65... hxg5+ {[%clk 0:00:25.5]} 66.
Kxg5 {[%clk 0:00:06.2]} 66... Bb3 {[%clk 0:00:24]} 67. Rd3 {[%clk 0:00:05.7]}
67... Bc2 {[%clk 0:00:23.8]} 68. Rg3 {[%clk 0:00:05.8]} 68... Bg6 {[%clk
0:00:24.1]} 69. Kf4 {[%clk 0:00:05.9]} 69... Kf6 {[%clk 0:00:24.2]} 70. Rb3
{[%clk 0:00:05.8]} 70... Bh7 {[%clk 0:00:23.9]} 71. Rb6+ {[%clk 0:00:05.9]}
71... Kg7 {[%clk 0:00:24.5]} 72. Ke5 {[%clk 0:00:05.9]} 72... Bg6 {[%clk
0:00:25.4]} 73. Kd6 {[%clk 0:00:06]} 73... Bh7 {[%clk 0:00:25.8]} 74. Ke7 {[%clk
0:00:06]} 74... Bg6 {[%clk 0:00:26.7]} 75. Rf6 {[%clk 0:00:05.9]} 75... Bh5
{[%clk 0:00:26.5]} 76. Rf2 {[%clk 0:00:05.6]} 76... Bg6 {[%clk 0:00:27.4]} 77.
Rf1 {[%clk 0:00:05.8]} 77... Bh5 {[%clk 0:00:23.8]} 78. Kd6 {[%clk 0:00:05.6]}
78... Bg6 {[%clk 0:00:23.4]} 79. Ke5 {[%clk 0:00:05.5]} 79... Bh7 {[%clk
0:00:23.6]} 80. Rg1+ {[%clk 0:00:04.5]} 80... Bg6 {[%clk 0:00:23.9]} 81. Rg2
{[%clk 0:00:03.7]} 81... Kh6 {[%clk 0:00:21.8]} 82. Kf6 {[%clk 0:00:03.3]} 82...
Kh5 {[%clk 0:00:22.5]} 83. Rg5+ {[%clk 0:00:03]} 83... Kh4 {[%clk 0:00:22.6]}
84. Rg1 {[%clk 0:00:02.9]} 84... Kh5 {[%clk 0:00:22.8]} 85. Ke5 {[%clk
0:00:02.3]} 85... Kh6 {[%clk 0:00:23]} 86. Kf6 {[%clk 0:00:01.4]} 86... Kh5
{[%clk 0:00:23.5]} 0-1

[Event "*** Titled Tuesday Blitz"]
[Site "Chess.com"]
[Date "2020.04.28"]
[Round "5"]
[White "ShahMatKanal"]
[Black "AnnaChessLook"]
[Result "1/2-1/2"]
[WhiteElo "2444"]
[BlackElo "2264"]
[TimeControl "180+1"]
[EndTime "10:57:36 PDT"]
[Termination "Game drawn by repetition"]

1. d4 {[%clk 0:03:00.9]} 1... Nf6 {[%clk 0:02:59]} 2. c4 {[%clk 0:02:59]} 2...
c5 {[%clk 0:02:59.1]} 3. d5 {[%clk 0:02:56]} 3... b5 {[%clk 0:02:58.9]} 4. a4
{[%clk 0:02:48.6]} 4... b4 {[%clk 0:02:55]} 5. b3 {[%clk 0:02:46.8]} 5... g6
{[%clk 0:02:53.6]} 6. Bb2 {[%clk 0:02:45.8]} 6... Bg7 {[%clk 0:02:54.1]} 7. Nf3
{[%clk 0:02:42.8]} 7... O-O {[%clk 0:02:54.4]} 8. g3 {[%clk 0:02:39.5]} 8... d6
{[%clk 0:02:53.3]} 9. Bg2 {[%clk 0:02:39.6]} 9... e6 {[%clk 0:02:54.2]} 10. dxe6
{[%clk 0:02:39.4]} 10... Bxe6 {[%clk 0:02:54.1]} 11. O-O {[%clk 0:02:39]} 11...
Nc6 {[%clk 0:02:52.3]} 12. Ra2 {[%clk 0:02:37.5]} 12... Qc7 {[%clk 0:02:50.4]}
13. Ng5 {[%clk 0:02:33]} 13... Bf5 {[%clk 0:02:39.4]} 14. e4 {[%clk 0:02:31.2]}
14... Bg4 {[%clk 0:02:36.3]} 15. f3 {[%clk 0:02:25.7]} 15... Bd7 {[%clk
0:02:34.8]} 16. Nd2 {[%clk 0:02:23.1]} 16... Rad8 {[%clk 0:02:21.9]} 17. Qa1
{[%clk 0:02:18.8]} 17... Ne8 {[%clk 0:02:19.1]} 18. Bxg7 {[%clk 0:02:14.7]}
18... Nxg7 {[%clk 0:02:20]} 19. Qf6 {[%clk 0:02:07.3]} 19... Nd4 {[%clk
0:02:09.6]} 20. e5 {[%clk 0:01:36.5]} 20... dxe5 {[%clk 0:01:32.7]} 21. Qa6
{[%clk 0:00:59.7]} 21... Qb6 {[%clk 0:01:17.7]} 22. Qxb6 {[%clk 0:00:57.1]}
22... axb6 {[%clk 0:01:18.6]} 23. a5 {[%clk 0:00:58]} 23... bxa5 {[%clk
0:01:00.1]} 24. Rxa5 {[%clk 0:00:58.9]} 24... Rc8 {[%clk 0:01:00.3]} 25. Nge4
{[%clk 0:00:55.8]} 25... Bf5 {[%clk 0:00:39.7]} 26. Nxc5 {[%clk 0:00:49.3]}
26... Nge6 {[%clk 0:00:35.8]} 27. Nce4 {[%clk 0:00:42.5]} 27... Bxe4 {[%clk
0:00:29.6]} 28. fxe4 {[%clk 0:00:42.6]} 28... f6 {[%clk 0:00:26.3]} 29. Bh3
{[%clk 0:00:35.6]} 29... Rcd8 {[%clk 0:00:25]} 30. Rf2 {[%clk 0:00:28]} 30...
Kg7 {[%clk 0:00:20.8]} 31. Bxe6 {[%clk 0:00:25.2]} 31... Nxe6 {[%clk 0:00:20.5]}
32. Rb5 {[%clk 0:00:25.9]} 32... Rb8 {[%clk 0:00:18.8]} 33. Rxb8 {[%clk
0:00:20.1]} 33... Rxb8 {[%clk 0:00:19.7]} 34. Nf3 {[%clk 0:00:18.7]} 34... Nc5
{[%clk 0:00:20]} 35. Rb2 {[%clk 0:00:19.2]} 35... Nxe4 {[%clk 0:00:19.9]} 36.
Nd2 {[%clk 0:00:16.5]} 36... Nc5 {[%clk 0:00:19.8]} 37. Kf1 {[%clk 0:00:15.1]}
37... Rd8 {[%clk 0:00:20.1]} 38. Ke2 {[%clk 0:00:15.5]} 38... Rd3 {[%clk
0:00:20.5]} 39. Rb1 {[%clk 0:00:14.7]} 39... Rc3 {[%clk 0:00:18.9]} 40. Rb2
{[%clk 0:00:12.1]} 40... g5 {[%clk 0:00:18.4]} 41. Ra2 {[%clk 0:00:10.1]} 41...
Nxb3 {[%clk 0:00:17.8]} 42. Ra7+ {[%clk 0:00:07.9]} 42... Kg6 {[%clk 0:00:17.6]}
43. Ne4 {[%clk 0:00:08.4]} 43... Nd4+ {[%clk 0:00:16.7]} 44. Kf2 {[%clk
0:00:08]} 44... Rc2+ {[%clk 0:00:15.6]} 45. Ke3 {[%clk 0:00:05]} 45... Re2+
{[%clk 0:00:14.8]} 46. Kd3 {[%clk 0:00:05.3]} 46... Rxh2 {[%clk 0:00:14.4]} 47.
Ra6 {[%clk 0:00:04]} 47... h6 {[%clk 0:00:12.8]} 48. Rxf6+ {[%clk 0:00:03.6]}
48... Kh5 {[%clk 0:00:11.4]} 49. Rb6 {[%clk 0:00:04.5]} 49... b3 {[%clk
0:00:08.7]} 50. Nf6+ {[%clk 0:00:04.3]} 50... Kg6 {[%clk 0:00:08.3]} 51. Ng4+
{[%clk 0:00:04.7]} 51... Kf5 {[%clk 0:00:08.9]} 52. Nxh2 {[%clk 0:00:04.9]}
52... h5 {[%clk 0:00:09]} 53. c5 {[%clk 0:00:03.2]} 53... Ne6 {[%clk 0:00:07]}
54. Rxb3 {[%clk 0:00:02.5]} 54... Nxc5+ {[%clk 0:00:07.1]} 55. Kc4 {[%clk
0:00:03.1]} 55... Nxb3 {[%clk 0:00:08]} 56. Kxb3 {[%clk 0:00:04]} 56... h4
{[%clk 0:00:08.8]} 57. gxh4 {[%clk 0:00:03.4]} 57... gxh4 {[%clk 0:00:09.7]} 58.
Kc2 {[%clk 0:00:03.9]} 58... Kf4 {[%clk 0:00:10.6]} 59. Kd2 {[%clk 0:00:04.1]}
59... Kg3 {[%clk 0:00:11.5]} 60. Nf1+ {[%clk 0:00:04.4]} 60... Kf2 {[%clk
0:00:11.8]} 61. Nh2 {[%clk 0:00:03.8]} 61... Kg2 {[%clk 0:00:11.7]} 62. Ng4
{[%clk 0:00:04.2]} 62... h3 {[%clk 0:00:12.2]} 63. Ke3 {[%clk 0:00:04.2]} 63...
Kg3 {[%clk 0:00:12.5]} 64. Nf2 {[%clk 0:00:04.5]} 64... h2 {[%clk 0:00:11.5]}
65. Nh1+ {[%clk 0:00:04.5]} 65... Kg2 {[%clk 0:00:11.8]} 66. Nf2 {[%clk
0:00:05.4]} 66... Kg1 {[%clk 0:00:10.7]} 67. Ke2 {[%clk 0:00:05.1]} 67... e4
{[%clk 0:00:10.3]} 68. Ke3 {[%clk 0:00:05.1]} 68... Kf1 {[%clk 0:00:08.7]} 69.
Nh1 {[%clk 0:00:04.3]} 69... Kg2 {[%clk 0:00:08.5]} 70. Nf2 {[%clk 0:00:04.5]}
70... Kg1 {[%clk 0:00:09]} 71. Ke2 {[%clk 0:00:04.5]} 71... Kg2 {[%clk 0:00:08]}
72. Ke3 {[%clk 0:00:04.8]} 72... Kf1 {[%clk 0:00:08.1]} 73. Nh1 {[%clk
0:00:04.7]} 73... Kg1 {[%clk 0:00:08.5]} 74. Nf2 {[%clk 0:00:05]} 74... Kg2
{[%clk 0:00:09.4]} 75. Ke2 {[%clk 0:00:05.2]} 75... Kg1 {[%clk 0:00:10]} 76. Ke3
{[%clk 0:00:05.3]} 1/2-1/2